bitfinex/quotes_ETHUSD_20240702
["timestamp","ask_amount","ask_price","bid_price","bid_amount"]
[1719925132649,1.05268454,3455.2,3455.0,0.0521534]
[1719925132827,0.5012827,3455.1,3455.0,0.0521534]
[1719925134650,1.05271045,3455.1,3455.0,0.0521534]
[1719925134855,1.05271327,3455.1,3455.0,0.0521534]
[1719925135072,2.89411,3455.3,3455.0,0.0521534]
[1719925135215,0.5012882,3455.1,3455.0,0.0521534]
[1719925135410,3.94697289,3455.1,3455.0,0.0521534]
[1719925135610,3.94697289,3455.1,3454.5,2.4742]
[1719925135611,2.89435,3455.0,3454.5,2.4742]
[1719925135815,1.05270289,3454.9,3454.5,2.4742]
[1719925136059,0.5012882,3454.8,3454.5,2.4242]
[1719925136255,0.5012882,3454.9,3454.5,2.4242]
[1719925137657,0.5012882,3454.9,3454.6,0.822]
[1719925138218,2.89435,3455.0,3454.6,0.822]
[1719925138424,0.50131781,3454.8,3454.6,0.822]
[1719925138658,0.50131781,3454.7,3454.6,0.822]
[1719925138868,0.50131781,3454.9,3454.6,0.822]
[1719925139066,2.89435,3455.0,3454.6,0.822]
[1719925139067,0.50131781,3454.8,3454.6,0.822]
[1719925139361,2.89435,3455.0,3454.6,0.822]
[1719925139362,0.50131781,3454.7,3454.6,0.822]
[1719925140369,0.50131781,3454.7,3454.5,0.822]
[1719925140522,0.50131781,3454.6,3454.5,0.822]
[1719925141042,0.289435,3454.9,3454.5,0.822]
[1719925141379,1.05287877,3454.8,3454.5,0.87187815]
[1719925141572,3.183885,3454.9,3454.5,0.87187815]
[1719925141573,0.50131946,3454.7,3454.5,0.87187815]
[1719925141859,0.50131946,3454.6,3454.5,0.87187815]
[1719925142024,0.50131946,3454.8,3454.5,0.87187815]
[1719925142227,5.32379,3454.6,3454.5,0.04987815]
[1719925142459,9.27139276,3454.6,3454.5,0.04987815]
[1719925142621,2.89495,3454.3,3453.8,0.822]
[1719925142820,1.05291276,3454.2,3453.7,2.4061]
[1719925143124,1.05291276,3454.1,3453.8,0.87027394]
[1719925143322,0.50131946,3454.0,3453.8,0.87027394]
[1719925143530,0.50131946,3453.9,3453.8,0.04827394]
[1719925143739,0.50131946,3454.2,3453.8,0.822]
[1719925143936,2.89495,3454.3,3453.8,0.822]
[1719925143937,0.50143836,3454.1,3453.8,0.822]
[1719925144139,0.50143836,3454.1,3453.9,0.04826797]
[1719925144351,0.50143836,3454.0,3453.9,0.04826797]
[1719925145374,0.50143836,3454.0,3453.9,0.87026797]
[1719925145524,0.50143836,3454.0,3453.9,0.822]
[1719925145726,0.50143836,3454.0,3453.9,0.87026797]
[1719925147249,2.89502,3454.2,3453.9,0.87026797]
[1719925147441,0.5014398,3454.1,3453.9,0.87026797]
[1719925147631,0.5014398,3454.0,3453.9,0.87026797]
[1719925149171,0.5014398,3454.0,3453.9,0.04826797]
[1719925149353,0.5014398,3454.0,3453.8,0.822]
[1719925149672,0.5014398,3453.9,3453.8,0.822]
[1719925149879,0.5014398,3454.1,3453.8,0.822]
[1719925150033,0.5014398,3454.0,3453.8,0.822]
[1719925150229,0.5014398,3453.9,3453.8,0.822]
[1719925150469,5.36392,3454.2,3453.8,0.822]
[1719925150769,5.36392,3454.2,3453.4,2.3618]
[1719925150770,3.39656011,3454.1,3453.4,2.3618]
[1719925151068,0.50144011,3454.0,3453.4,5.25749]
[1719925151225,3.39664011,3454.0,3453.6,0.822]
[1719925151551,9.18034011,3453.9,3453.6,0.822]
[1719925151865,0.50144011,3453.8,3453.6,0.822]
[1719925152255,8.6789,3453.9,3453.6,0.822]
[1719925152256,11.57417,3453.9,3453.6,0.822]
[1719925152464,13.41749117,3453.9,3453.6,0.822]
[1719925152664,13.41749117,3453.9,3453.4,0.144]
[1719925152968,13.41749117,3453.9,3453.6,0.822]
[1719925154375,11.57417,3453.9,3453.6,0.822]
[1719925154582,11.57417,3453.9,3453.4,0.144]
[1719925154583,2.89537,3453.8,3453.4,0.144]
[1719925154785,2.89544,3453.7,3453.6,0.822]
[1719925155256,2.89544,3453.7,3453.5,0.822]
[1719925156359,2.89544,3453.7,3453.6,0.04889147]
[1719925158375,2.89544,3453.7,3453.4,0.966]
[1719925158758,2.89544,3453.7,3453.5,0.04731918]
[1719925159679,2.4664,3453.8,3453.5,0.04731918]
[1719925159879,11.57417,3453.9,3453.6,0.822]
[1719925160089,8.6789,3453.9,3453.6,0.822]
[1719925160376,8.6789,3453.9,3453.8,0.822]
[1719925160683,8.6789,3453.9,3453.8,0.86934322]
[1719925162192,9.18033978,3453.9,3453.8,0.86934322]
[1719925163583,8.6789,3453.9,3453.8,0.86934322]
[1719925163794,9.18034404,3453.9,3453.8,0.86934322]
[1719925167056,9.18034343,3453.9,3453.8,0.86934322]
[1719925167493,8.6789,3453.9,3453.8,0.86934322]
[1719925167699,9.18034106,3453.9,3453.8,0.86934322]
[1719925168996,9.18034106,3453.9,3453.8,0.04734322]
[1719925169368,9.18034106,3453.9,3453.7,0.822]
[1719925169599,8.6789,3453.9,3453.8,0.04725141]
[1719925169775,9.18035065,3453.9,3453.8,0.04725141]
[1719925170282,9.18035068,3453.9,3453.7,3.71744]
[1719925170604,8.6789,3453.9,3453.8,0.04725141]
[1719925170772,9.18033996,3453.9,3453.8,0.04725141]
[1719925170972,9.18033996,3453.9,3453.7,3.71744]
[1719925171178,8.6789,3453.9,3453.8,0.04725141]
[1719925171499,9.18033074,3453.9,3453.7,3.71744]
[1719925171703,8.6789,3453.9,3453.8,0.04725141]
[1719925172001,9.18032703,3453.9,3453.7,6.61283]
[1719925172217,0.50142703,3453.8,3453.7,3.71739]
[1719925172417,0.50142703,3453.8,3453.7,6.06789]
[1719925172842,8.6789,3453.9,3453.8,2.89536]
[1719925173120,8.6789,3453.9,3453.8,5.79072]
[1719925173488,9.18028687,3453.9,3453.8,5.79072]
[1719925173684,8.6789,3453.9,3453.8,5.79072]
[1719925174018,9.18028402,3453.9,3453.8,5.79072]
[1719925174185,9.18029326,3453.9,3453.8,5.79072]
[1719925174522,9.18029191,3453.9,3453.8,5.79072]
[1719925175325,9.18029191,3453.9,3453.8,8.12122]
[1719925175930,9.18029191,3453.9,3453.8,11.01658]
[1719925176292,8.6789,3453.9,3453.8,11.01658]
[1719925177794,9.18026565,3453.9,3453.8,11.01658]
[1719925178235,8.6789,3453.9,3453.8,11.01658]
[1719925181940,8.6789,3453.9,3453.8,11.06364788]
[1719925182144,8.6789,3453.9,3453.8,8.16828788]
[1719925182441,8.6789,3453.9,3453.8,5.83778788]
[1719925182736,9.18029725,3453.9,3453.8,6.65978788]
[1719925183398,8.6789,3453.9,3453.8,6.65978788]
[1719925186453,9.1802932,3453.9,3453.8,6.65978788]
[1719925190544,8.6789,3453.9,3453.8,6.65978788]
[1719925190830,9.18028591,3453.9,3453.8,6.65978788]
[1719925191058,9.18028471,3453.9,3453.8,6.65978788]
[1719925193840,9.18028435,3453.9,3453.8,6.65978788]
[1719925194040,9.18028515,3453.9,3453.8,6.65978788]
[1719925196643,9.18028515,3453.9,3453.8,5.83778788]
[1719925196967,9.18028515,3453.9,3453.8,6.65978788]
[1719925197183,9.18030047,3453.9,3453.8,6.65978788]
[1719925200600,9.18028124,3453.9,3453.8,6.65978788]
[1719925202877,8.6789,3453.9,3453.8,6.65978788]
[1719925203234,9.18028766,3453.9,3453.8,6.65978788]
[1719925203520,9.1802844,3453.9,3453.8,6.65978788]
[1719925204626,2.482,3455.4,3455.2,2.89417]
[1719925204827,0.50126411,3455.3,3455.2,2.89417]
[1719925204993,0.50126411,3455.3,3455.2,3.71617]
[1719925205615,0.50126411,3455.3,3455.2,6.66822799]
[1719925205819,2.3054,3455.9,3455.4,2.89394]
[1719925206093,2.3054,3455.9,3455.8,0.822]
[1719925206293,3.30776017,3455.9,3455.8,0.822]
[1719925207428,2.2597,3455.8,3455.0,0.822]
[1719925207588,1.87445672,3455.7,3454.7,2.89459]
[1719925207788,2.89394,3455.5,3454.7,2.89459]
[1719925208017,2.89394,3455.5,3454.1,2.4037]
[1719925208018,0.50118008,3455.4,3454.6,2.89468]
[1719925208226,1.42429435,3455.4,3454.7,3.71659]
[1719925208423,0.50118008,3455.3,3454.9,0.822]
[1719925208639,0.50118008,3455.3,3455.2,0.822]
[1719925209113,0.5012617,3455.3,3455.2,0.822]
[1719925209320,0.5012617,3455.3,3454.7,2.89459]
[1719925209321,0.5012617,3455.3,3455.0,0.822]
[1719925209632,2.89378,3455.7,3455.0,0.822]
[1719925209633,0.5012617,3455.2,3455.0,0.822]
[1719925209876,0.5012617,3455.5,3455.0,0.822]
[1719925210028,0.5012617,3455.4,3455.0,0.822]
[1719925210226,0.5012617,3455.5,3455.0,0.822]
[1719925210477,2.3242,3455.4,3454.8,3.71652]
[1719925210674,0.5012617,3455.3,3454.8,2.89452]
[1719925210970,0.5012617,3455.3,3452.9,1.0]
[1719925210971,2.3242,3455.2,3454.4,2.89478]
[1719925211165,2.3242,3455.2,3454.5,3.71676]
[1719925211166,0.5012617,3455.1,3454.5,3.71676]
[1719925211377,3.3955617,3455.1,3454.4,2.89485]
[1719925211553,0.5012617,3455.0,3454.6,2.89469]
[1719925211758,2.3242,3455.2,3454.9,0.822]
[1719925212082,0.50130016,3455.1,3454.7,0.822]
[1719925212298,0.50130044,3455.0,3454.7,0.822]
[1719925212451,2.3242,3455.2,3454.7,0.822]
[1719925212452,0.50130044,3454.9,3454.7,0.822]
[1719925212651,0.50130044,3454.8,3454.7,0.822]
[1719925213386,2.3242,3455.2,3454.7,0.822]
[1719925213548,0.50129088,3455.1,3454.7,0.822]
[1719925213754,0.50129088,3455.0,3454.7,0.822]
[1719925213952,0.50129088,3454.9,3454.7,0.822]
[1719925214153,0.50129088,3455.1,3454.7,0.822]
[1719925215601,0.50129772,3455.0,3454.7,0.822]
[1719925215901,0.50129772,3454.9,3454.7,0.822]
[1719925216051,0.50130028,3454.8,3454.7,0.822]
[1719925216769,2.3242,3455.2,3454.7,0.822]
[1719925216966,2.3242,3455.2,3454.6,2.89469]
[1719925216967,0.50129008,3455.1,3454.9,0.822]
[1719925217186,2.3242,3455.2,3454.9,0.822]
[1719925217187,0.50129008,3455.0,3454.9,0.822]
[1719925218693,2.3242,3455.2,3454.9,0.822]
[1719925218892,0.50129549,3455.1,3454.9,0.822]
[1719925219184,0.50129549,3455.0,3454.9,0.822]
[1719925219560,0.50129549,3455.0,3454.5,2.89474]
[1719925219776,0.50129549,3454.9,3454.7,0.822]
[1719925219977,0.50129549,3455.1,3454.7,0.822]
[1719925221904,5.21839,3455.2,3454.7,0.822]
[1719925222119,0.50127431,3455.0,3454.7,0.822]
[1719925222305,0.50127431,3454.9,3454.7,0.822]
[1719925222462,0.50127431,3455.1,3454.7,0.822]
[1719925222815,0.50127431,3455.1,3454.5,3.71676]
[1719925222968,2.89435,3455.0,3454.3,2.89487]
[1719925223169,2.89435,3455.0,3454.4,0.822]
[1719925223170,0.50127431,3454.9,3454.4,0.822]
[1719925223791,0.50127431,3454.9,3454.4,3.71685]
[1719925224505,0.50127431,3454.9,3454.5,0.822]
[1719925225201,0.86137643,3455.1,3454.5,0.822]
[1719925225502,0.50131765,3455.0,3454.7,0.822]
[1719925225805,2.89427,3455.1,3454.7,0.822]
[1719925225806,0.50131765,3454.9,3454.7,0.822]
[1719925226003,0.50131765,3454.8,3454.7,0.822]
[1719925226966,0.50131765,3454.8,3454.7,0.86819149]
[1719925228405,2.3242,3455.2,3454.7,0.86819149]
[1719925228582,0.50128824,3455.1,3454.7,0.86819149]
[1719925228786,0.50128824,3455.0,3454.7,0.86819149]
[1719925229101,0.50129193,3454.9,3454.7,0.86819149]
[1719925229289,0.50129193,3454.8,3454.7,0.86819149]
[1719925229691,0.50129193,3455.1,3454.7,0.86819149]
[1719925229876,0.50129193,3455.0,3454.7,0.86819149]
[1719925230077,0.50129193,3454.9,3454.7,0.86819149]
[1719925230308,0.50129193,3454.8,3454.7,0.86819149]
[1719925231100,0.50129193,3454.8,3454.7,0.04619149]
[1719925231301,2.75629193,3454.8,3454.0,2.89511]
[1719925231487,0.50129193,3454.7,3454.1,2.94122968]
[1719925231692,2.255,3454.8,3454.1,2.94122968]
[1719925231693,0.50134639,3454.6,3454.1,2.94122968]
[1719925231878,2.255,3454.8,3454.1,2.94122968]
[1719925232078,1.01630568,3454.7,3454.1,2.94122968]
[1719925232299,0.50135568,3454.6,3454.1,3.76322968]
[1719925232631,0.50135568,3454.6,3454.1,3.76321968]
[1719925232776,0.50135568,3454.7,3454.1,0.04616968]
[1719925232975,0.50135568,3454.7,3453.7,3.71742]
[1719925232976,2.89495,3454.3,3453.7,3.71742]
[1719925233276,2.89495,3454.3,3453.7,0.822]
[1719925233481,2.89495,3454.3,3453.8,0.04633962]
[1719925233482,0.50143248,3454.2,3453.8,0.04633962]
[1719925233700,2.4318,3454.0,3453.4,3.03964]
[1719925233907,2.4318,3454.0,3453.4,0.144]
[1719925234108,0.50146483,3453.9,3453.5,0.04483533]
[1719925234378,0.50146483,3453.8,3453.5,0.86683533]
[1719925234578,0.50146483,3453.9,3453.7,0.822]
[1719925234788,0.50145264,3453.8,3453.7,0.822]
[1719925235111,0.50144976,3453.8,3453.7,0.822]
[1719925237312,0.50144976,3453.8,3453.7,3.71744]
[1719925237498,2.4179,3454.5,3453.7,3.71744]
[1719925237499,2.4179,3454.5,3453.8,2.89531]
[1719925237700,0.50140303,3454.4,3454.0,0.822]
[1719925237893,0.50140303,3454.4,3453.8,2.89531]
[1719925237894,0.50140303,3454.3,3454.2,0.822]
[1719925238129,0.50140303,3454.3,3454.0,0.822]
[1719925238130,0.50139066,3454.3,3454.0,0.822]
[1719925238607,0.50139066,3454.2,3454.0,0.822]
[1719925238824,0.50139066,3454.1,3454.0,0.822]
[1719925239150,2.89462,3454.7,3454.0,3.71719]
[1719925239433,0.50135719,3454.6,3454.2,0.822]
[1719925239612,0.50135719,3454.5,3454.2,0.822]
[1719925239821,3.39596719,3454.7,3454.2,0.822]
[1719925240029,0.50135719,3454.6,3454.0,0.822]
[1719925240258,0.50135719,3454.6,3453.7,2.89541]
[1719925240557,0.50135719,3454.6,3453.9,3.71727]
[1719925241233,2.89461,3454.7,3453.9,3.71727]
[1719925241436,0.50139247,3454.5,3453.9,3.71727]
[1719925241639,0.50139247,3454.4,3453.9,3.71727]
[1719925241817,2.89469,3454.6,3453.9,3.71727]
[1719925242018,0.50139222,3454.5,3454.0,0.04483429]
[1719925244519,0.50138998,3454.4,3454.0,0.04483429]
[1719925244715,0.50138998,3454.3,3454.0,0.04483429]
[1719925244920,0.50139061,3454.2,3454.0,0.04483429]
[1719925245115,2.89469,3454.6,3454.0,0.04483429]
[1719925245363,0.5013895,3454.5,3454.0,0.04483429]
[1719925245661,2.89469,3454.6,3454.0,0.04483429]
[1719925245662,0.5013895,3454.4,3454.0,0.04483429]
[1719925245857,0.5013895,3454.5,3454.0,0.04483429]
[1719925246020,0.5013895,3454.4,3454.0,0.04483429]
[1719925246222,0.5013895,3454.5,3454.0,0.04483429]
[1719925246418,2.89469,3454.6,3454.0,0.04483429]
[1719925246419,0.5013895,3454.4,3454.0,0.04483429]
[1719925246625,0.5013895,3454.3,3454.0,0.04483429]
[1719925246962,0.5013895,3454.2,3454.0,0.04483429]
[1719925247168,2.89469,3454.6,3454.0,0.04483429]
[1719925247389,0.50138363,3454.5,3454.0,0.04483429]
[1719925247569,0.50138363,3454.4,3454.0,0.04483429]
[1719925247892,2.78809207,3454.3,3454.0,0.04483429]
[1719925248184,2.78809207,3454.3,3453.6,5.28985]
[1719925248185,0.50139207,3454.2,3453.7,0.822]
[1719925248346,0.50139207,3454.2,3453.9,0.822]
[1719925248548,0.50139207,3454.2,3454.0,0.04505184]
[1719925251156,0.50141388,3454.1,3454.0,0.04505184]
[1719925251776,0.50141388,3454.1,3453.8,0.822]
[1719925251777,2.8952,3454.0,3453.8,0.822]
[1719925251977,2.8952,3454.0,3453.9,0.0450683]
[1719925252295,3.39664895,3454.0,3453.9,0.0450683]
[1719925252587,3.39664895,3454.0,3453.8,0.822]
[1719925252887,0.50144895,3453.9,3453.8,0.822]
[1719925253789,0.50144895,3453.9,3453.8,0.86709263]
[1719925254083,0.50144895,3453.9,3453.8,0.04509263]
[1719925254285,1.08076284,3453.9,3453.8,0.04509263]
[1719925254461,0.57931389,3453.9,3453.4,3.03969]
[1719925254663,2.89519,3454.0,3453.8,0.04512147]
[1719925254886,0.50146987,3453.9,3453.4,3.86169]
[1719925255084,0.50146987,3453.8,3453.4,3.86169]
[1719925255286,0.50146987,3453.7,3453.4,3.86169]
[1719925255469,0.50146987,3453.6,3453.4,3.86169]
[1719925255674,0.50146987,3453.9,3453.4,3.86169]
[1719925255993,2.3167,3453.8,3453.4,0.966]
[1719925256164,2.89553,3453.6,3453.4,0.144]
[1719925256503,0.50146987,3453.5,3453.4,0.144]
[1719925257208,0.50146987,3453.5,3453.4,0.18923976]
[1719925257699,0.50153278,3453.5,3453.4,0.18923976]
[1719925257899,0.50153832,3453.5,3453.4,0.18923976]
[1719925258619,4.31519795,3453.5,3453.4,0.18923976]
[1719925259011,6.62649795,3453.5,3453.4,0.144]
[1719925259175,6.62649795,3453.5,3453.4,0.18923976]
[1719925259356,6.62649795,3453.5,3453.4,0.144]
[1719925259904,6.62649795,3453.5,3453.4,0.18923976]
[1719925260326,3.73088795,3453.5,3453.4,0.18923976]
[1719925260494,5.70844832,3453.5,3453.4,0.18923976]
[1719925260702,5.70843564,3453.5,3453.4,0.18923976]
[1719925261487,2.81282564,3453.5,3453.4,0.18923976]
[1719925261787,0.50152564,3453.5,3453.4,0.18923976]
[1719925263336,0.50148084,3453.5,3453.4,0.18923976]
[1719925263542,0.50147769,3453.5,3453.4,0.18923976]
[1719925266611,0.50150612,3453.5,3453.4,0.18923976]
[1719925267148,0.50149537,3453.5,3453.4,0.18923976]
[1719925269601,0.50149537,3453.5,3453.4,3.08492976]
[1719925269832,5.183,3454.4,3453.6,2.89545]
[1719925270105,0.50145955,3454.3,3453.8,0.822]
[1719925270306,0.50145955,3454.2,3453.9,0.04541966]
[1719925270617,0.50145955,3454.1,3453.9,0.04541966]
[1719925270812,0.50145955,3454.0,3453.9,0.04541966]
[1719925271739,0.50145955,3454.0,3453.9,2.94068966]
[1719925273211,2.89469,3454.6,3454.0,2.89519]
[1719925273407,0.50138226,3454.5,3454.0,2.89519]
[1719925273616,0.50138226,3454.4,3454.1,0.04532642]
[1719925273944,0.50138226,3454.3,3454.1,0.04532642]
[1719925274442,0.50138226,3454.2,3454.1,0.04532642]
[1719925274657,0.50138226,3454.5,3454.1,0.04532642]
[1719925274854,0.50138226,3454.4,3453.8,3.71731]
[1719925275012,3.39630226,3454.4,3454.2,0.04526801]
[1719925275343,3.33497689,3454.3,3453.6,2.89549]
[1719925275546,0.50138226,3454.2,3453.6,2.89549]
[1719925275746,0.50138226,3454.2,3453.7,3.71743]
[1719925276108,2.4038,3454.3,3453.7,3.71743]
[1719925276411,0.50141625,3454.2,3453.7,3.71743]
[1719925277362,0.50141625,3454.1,3453.7,3.71743]
[1719925277561,0.50141625,3454.0,3453.7,3.71743]
[1719925277851,0.50141625,3453.9,3453.7,3.71743]
[1719925278024,0.50141625,3454.3,3453.7,3.71743]
[1719925278228,2.89492,3454.4,3453.7,3.71743]
[1719925278229,0.50141625,3454.2,3453.7,3.71743]
[1719925278421,5.31259,3454.6,3453.9,2.89526]
[1719925278422,0.50141625,3454.1,3453.9,2.89526]
[1719925278751,0.50141625,3454.0,3453.9,2.89526]
[1719925279428,5.31259,3454.6,3453.9,3.71726]
[1719925279630,0.50141033,3454.0,3453.9,3.71726]
[1719925279839,6.215501,3454.6,3453.9,3.71726]
[1719925279840,5.31259,3454.6,3453.9,3.71726]
[1719925280042,1.05335296,3454.5,3453.9,3.71726]
[1719925280258,0.50140891,3454.4,3453.9,3.71726]
[1719925280456,0.50140891,3454.5,3453.9,3.71726]
[1719925280752,0.50140891,3454.4,3453.9,3.71726]
[1719925280919,0.50140891,3454.5,3453.9,3.71726]
[1719925281262,0.50140891,3454.4,3453.9,3.71726]
[1719925281557,0.50140891,3454.3,3453.9,3.71726]
[1719925281848,0.50140891,3454.5,3453.9,3.71726]
[1719925282052,0.50140891,3454.4,3453.9,3.71726]
[1719925282217,0.50140891,3454.5,3453.9,3.71726]
[1719925282550,4.4395559,3454.5,3453.9,2.89526]
[1719925282751,0.50142553,3454.4,3453.9,2.89526]
[1719925282953,0.50142556,3454.3,3453.9,2.89526]
[1719925283141,0.50142556,3454.2,3453.9,2.89526]
[1719925283467,0.46628091,3454.1,3453.9,2.89526]
[1719925283619,2.89478,3454.5,3453.9,2.89526]
[1719925283961,3.9020537,3454.5,3453.7,5.79079]
[1719925284142,3.9020537,3454.5,3453.8,0.822]
[1719925284963,3.9020537,3454.5,3453.8,3.71735]
[1719925285330,3.9020537,3454.5,3453.6,2.89547]
[1719925285331,2.89497,3454.3,3453.6,2.89547]
[1719925285661,0.445425,3454.2,3453.7,2.89543]
[1719925285844,2.89497,3454.3,3453.7,2.89543]
[1719925286022,2.89493,3454.4,3453.8,6.17466]
[1719925286922,2.89493,3454.4,3453.9,0.04516006]
[1719925288620,5.18214,3454.3,3453.9,0.04516006]
[1719925288954,5.18214,3454.3,3454.0,0.04514622]
[1719925289267,0.807707,3454.2,3453.7,3.71739]
[1719925289557,5.18214,3454.3,3453.7,3.71739]
[1719925289858,5.18214,3454.3,3453.8,0.04515817]
[1719925290156,5.18214,3454.3,3453.7,3.71739]
[1719925290464,5.18214,3454.3,3453.9,0.04515219]
[1719925290756,0.807707,3454.2,3454.0,0.0451908]
[1719925290917,0.807707,3454.2,3453.7,2.89544]
[1719925291119,0.807707,3454.2,3453.8,0.04520275]
[1719925291342,0.807707,3454.2,3453.7,2.89544]
[1719925291559,5.18214,3454.3,3453.7,2.89544]
[1719925291861,5.18214,3454.3,3453.8,0.04520275]
[1719925292017,2.89483,3454.5,3453.9,0.822]
[1719925292220,2.89486,3454.4,3453.9,0.86721775]
[1719925292924,2.89486,3454.4,3453.9,0.04521775]
[1719925293327,5.22762,3454.6,3453.9,3.76247775]
[1719925293535,1.05343619,3454.5,3453.9,3.76247775]
[1719925293765,0.50141731,3454.4,3453.9,3.76247775]
[1719925293919,5.22762,3454.6,3453.9,3.76247775]
[1719925293920,0.50141731,3454.5,3453.9,3.76247775]
[1719925294121,2.3329,3454.6,3454.0,2.89516]
[1719925294416,5.2276,3454.6,3454.1,0.0448515]
[1719925294642,2.3329,3454.6,3454.1,0.0448515]
[1719925294951,2.89461,3454.7,3454.1,0.0448515]
[1719925296546,0.50141734,3454.4,3454.1,0.0448515]
[1719925297909,1.81,3455.0,3454.3,2.89494]
[1719925298183,1.81,3455.0,3454.4,0.04479949]
[1719925298369,4.81,3455.0,3454.4,0.04479949]
[1719925298557,6.188847,3455.0,3454.4,0.04479949]
[1719925298978,9.083207,3455.0,3454.4,0.04479949]
[1719925300377,1.81,3455.0,3454.5,0.822]
[1719925300683,1.81,3455.0,3454.6,2.89461]
[1719925300868,1.81,3455.0,3454.9,0.822]
[1719925301385,1.81,3455.0,3454.9,0.04471981]
[1719925301589,5.99193,3455.8,3454.9,0.86671981]
[1719925301774,0.599193,3455.7,3454.9,0.86671981]
[1719925301973,2.8939,3455.6,3455.0,2.89435]
[1719925302442,2.8939,3455.6,3455.1,0.04462923]
[1719925302643,2.8939,3455.6,3455.0,2.89435]
[1719925302847,3.7159,3455.6,3455.2,0.04462326]
[1719925303150,0.9485003,3455.5,3454.9,2.89436]
[1719925303464,3.7159,3455.6,3455.3,0.04461729]
[1719925303648,3.7159,3455.6,3455.0,2.89435]
[1719925303848,3.7159,3455.6,3455.4,0.04461132]
[1719925304184,3.7159,3455.6,3455.5,0.04460535]
[1719925304369,2.894,3455.5,3454.7,2.3773]
[1719925304572,2.894,3455.5,3454.8,2.8945]
[1719925305485,2.89403,3455.4,3454.8,2.8945]
[1719925307883,2.89412,3455.3,3454.7,2.3773]
[1719925308372,3.71603,3455.4,3454.7,5.27189]
[1719925309676,2.89403,3455.4,3454.7,5.27189]
[1719925311794,2.8941,3455.3,3454.7,5.27189]
[1719925314210,2.3356,3455.2,3454.7,2.89459]
[1719925316796,0.50128736,3455.1,3454.8,0.04442958]
[1719925316993,2.3356,3455.2,3454.7,2.89459]
[1719925316994,0.50128736,3455.0,3454.7,2.89459]
[1719925317223,2.8941,3455.3,3454.7,2.89459]
[1719925317224,0.50128736,3455.1,3454.9,0.04442361]
[1719925317530,0.50128736,3455.1,3454.7,2.89459]
[1719925317531,0.50128805,3455.0,3454.7,2.89459]
[1719925317702,0.50128805,3454.9,3454.7,2.89459]
[1719925318034,0.50128805,3454.8,3454.6,2.89468]
[1719925318206,1.32328805,3455.2,3454.4,2.3143]
[1719925318404,1.32328805,3455.2,3452.8,2.89614]
[1719925318405,2.89457,3454.8,3454.1,2.2959]
[1719925318732,3.1623,3455.0,3453.8,2.467]
[1719925318733,3.7167,3454.6,3453.8,2.467]
[1719925319233,0.50138564,3454.5,3453.7,2.89543]
[1719925319533,0.50138564,3454.5,3453.4,3.03962]
[1719925319534,2.89508,3454.2,3453.4,3.03962]
[1719925319704,2.89508,3454.2,3453.4,3.86162]
[1719925319705,0.50138564,3454.1,3453.4,3.86162]
[1719925320294,0.50138564,3454.1,3453.6,0.822]
[1719925321001,3.39649564,3454.1,3453.6,0.822]
[1719925321208,2.89511,3454.1,3453.6,0.822]
[1719925321537,0.5014465,3454.0,3453.6,3.71752]
[1719925321745,2.89501,3454.3,3453.6,3.71752]
[1719925321746,0.50141163,3453.9,3453.6,3.71752]
[1719925321908,2.89508,3454.2,3453.6,3.71752]
[1719925322101,0.50142329,3454.1,3453.6,3.71752]
[1719925322302,0.50142329,3454.0,3453.6,3.71752]
[1719925322501,0.50142329,3453.9,3453.6,3.71752]
[1719925322719,2.89508,3454.2,3453.6,3.71752]
[1719925322720,0.50142848,3453.8,3453.6,3.71752]
[1719925322920,2.89508,3454.2,3453.6,3.71752]
[1719925323150,0.50142512,3454.1,3453.6,3.71752]
[1719925323337,0.50142512,3454.0,3453.6,3.71752]
[1719925323525,0.50142512,3454.1,3453.6,3.71752]
[1719925324227,0.50142512,3454.2,3453.6,3.71752]
[1719925324423,0.50142481,3454.1,3453.6,3.71752]
[1719925324745,0.50142481,3454.0,3453.8,0.822]
[1719925324919,0.50142481,3453.9,3453.8,0.822]
[1719925326245,0.50142481,3453.9,3453.7,0.822]
[1719925326426,5.78999,3454.3,3453.7,0.822]
[1719925326627,0.50142967,3454.2,3453.7,0.822]
[1719925326830,0.50142967,3454.1,3453.7,0.822]
[1719925327052,0.50142967,3454.0,3453.7,0.822]
[1719925327360,0.50142967,3453.9,3453.7,0.822]
[1719925327665,2.89503,3454.2,3453.7,0.822]
[1719925327820,0.50141838,3454.1,3453.7,0.822]
[1719925328027,0.50141838,3454.0,3453.7,0.822]
[1719925328240,0.50141838,3454.2,3453.7,0.822]
[1719925328438,0.50141838,3454.1,3453.7,0.822]
[1719925328762,0.50141838,3454.0,3453.7,0.822]
[1719925329067,0.50141838,3453.9,3453.7,0.822]
[1719925329252,0.50141838,3454.2,3453.7,0.822]
[1719925329448,0.50142676,3454.1,3453.7,0.822]
[1719925329639,0.50142676,3454.0,3453.7,0.822]
[1719925329839,2.89496,3454.3,3453.7,0.822]
[1719925329840,0.50142676,3454.2,3453.7,0.822]
[1719925330429,0.50142676,3454.2,3453.7,3.71744]
[1719925330960,2.89496,3454.3,3453.7,3.71744]
[1719925331162,0.50141664,3454.2,3453.7,3.71744]
[1719925331338,0.50141664,3454.1,3453.9,3.71727]
[1719925331542,2.89469,3454.6,3453.9,3.71727]
[1719925331739,3.39620205,3454.5,3453.9,3.71727]
[1719925331942,0.50141205,3454.4,3454.0,0.04343896]
[1719925334468,2.89479,3454.5,3454.0,0.04343896]
[1719925334469,0.50141511,3454.3,3454.0,0.04343896]
[1719925334665,0.50141511,3454.2,3454.0,0.04343896]
[1719925334965,0.50141894,3454.1,3454.0,0.04343896]
[1719925337643,0.50140383,3454.1,3454.0,0.04343896]
[1719925338143,0.50139753,3454.1,3454.0,0.04343896]
[1719925338786,0.50138986,3454.1,3454.0,0.04343896]
[1719925338947,0.50138986,3454.1,3454.0,5.83381896]
[1719925339279,2.89448,3454.9,3454.2,2.89497]
[1719925339568,0.5013693,3454.8,3454.2,2.89497]
[1719925339765,0.5013693,3454.8,3454.3,0.04337908]
[1719925339971,0.5013693,3454.7,3454.2,2.89497]